bitfinex/quotes_ETHUSD_20240928
["timestamp","ask_amount","ask_price","bid_price","bid_amount"]
[1727526935047,2.15868354,2667.7,2667.6,3.74868]
[1727526935357,2.15868354,2667.7,2667.6,4.52778]
[1727526935531,2.15868354,2667.7,2667.6,5.355439]
[1727526935936,2.0,2667.7,2667.6,5.355439]
[1727526936153,0.39233531,2667.8,2667.7,3.74854]
[1727526936401,2.0,2668.1,2668.0,3.74812]
[1727526936859,2.15880278,2668.1,2668.0,3.74812]
[1727526938360,2.15880278,2668.1,2668.0,4.52722]
[1727526939277,2.0,2668.1,2668.0,4.52722]
[1727526940790,2.0,2668.1,2668.0,3.74812]
[1727526940941,2.15906928,2668.1,2668.0,3.74812]
[1727526941285,2.15906928,2668.1,2667.8,3.74832]
[1727526943157,2.15906928,2668.1,2667.7,3.74846]
[1727526943355,2.15906928,2668.1,2667.7,7.49692]
[1727526943688,2.15906928,2668.1,2667.7,3.74846]
[1727526943896,2.15906928,2668.1,2667.9,3.74815]
[1727526944058,2.15906928,2668.1,2668.0,3.74812]
[1727526944401,2.15906928,2668.1,2667.9,3.74815]
[1727526944583,2.15906928,2668.1,2668.0,3.74812]
[1727526945305,2.15906928,2668.1,2667.9,7.49633]
[1727526945594,2.15906928,2668.1,2668.0,3.74812]
[1727526946587,2.15906928,2668.1,2668.0,4.52722]
[1727526952998,2.15906928,2668.1,2668.0,5.69712398]
[1727526954674,2.93614282,2668.1,2668.0,4.52722]
[1727526957116,2.93860114,2668.1,2668.0,4.52722]
[1727526957279,2.93867299,2668.1,2668.0,4.52722]
[1727526958102,2.15906928,2668.1,2668.0,4.52722]
[1727526967256,2.15906928,2668.1,2668.0,7.95088975]
[1727526967411,2.15906928,2668.1,2668.0,9.12079373]
[1727526974273,2.15906928,2668.1,2668.0,6.10856244]
[1727526978172,2.93867299,2668.1,2668.0,6.10856244]
[1727526979159,2.15906928,2668.1,2668.0,6.10856244]
[1727526980281,2.93867299,2668.1,2668.0,6.10856244]
[1727526985086,2.15906928,2668.1,2668.0,6.10856244]
[1727526985331,2.9402409,2668.1,2668.0,6.10856244]
[1727526985563,2.94024138,2668.1,2668.0,6.10856244]
[1727526986392,2.94024138,2668.1,2668.0,7.09423368]
[1727526986601,0.94024138,2668.1,2668.0,7.09423368]
[1727526987380,0.15906928,2668.1,2668.0,7.09423368]
[1727526987879,0.94024138,2668.1,2668.0,7.09423368]
[1727526989334,0.94024138,2668.1,2668.0,6.10856244]
[1727526999323,1.32597229,2668.1,2668.0,6.10856244]
[1727527005450,1.32597229,2668.1,2668.0,3.74812]
[1727527005763,1.32597229,2668.1,2668.0,5.32946244]
[1727527006817,0.15906928,2668.1,2668.0,5.32946244]
[1727527007156,1.33244763,2668.1,2668.0,5.32946244]
[1727527008187,1.33250589,2668.1,2668.0,6.31712368]
[1727527009106,1.33248354,2668.1,2668.0,6.31712368]
[1727527011193,1.33248354,2668.1,2668.0,5.32946244]
[1727527015629,1.33248354,2668.1,2668.0,3.74812]
[1727527015833,1.71493997,2668.1,2668.0,5.32946244]
[1727527019942,0.15906928,2668.1,2668.0,5.32946244]
[1727527020323,1.71493997,2668.1,2668.0,5.32946244]
[1727527020521,0.15906928,2668.1,2668.0,5.32946244]
[1727527022719,1.33249856,2668.1,2668.0,5.32946244]
[1727527022947,0.15906928,2668.1,2668.0,5.32946244]
[1727527023169,1.33250357,2668.1,2668.0,5.32946244]
[1727527023457,1.33247825,2668.1,2668.0,5.32946244]
[1727527025350,0.15906928,2668.1,2668.0,5.32946244]
[1727527025653,1.33248743,2668.1,2668.0,5.32946244]
[1727527026921,0.15906928,2668.1,2668.0,5.32946244]
[1727527027444,1.33241215,2668.1,2668.0,5.32946244]
[1727527027645,1.33241526,2668.1,2668.0,5.32946244]
[1727527027863,1.33241226,2668.1,2668.0,5.32946244]
[1727527028037,0.15906928,2668.1,2668.0,5.32946244]
[1727527028211,1.33242288,2668.1,2668.0,5.32946244]
[1727527028405,0.15906928,2668.1,2668.0,3.74812]
[1727527028634,4.87995332,2668.1,2668.0,3.74812]
[1727527030648,4.87995332,2668.1,2668.0,5.32946244]
[1727527030649,2.92436928,2668.1,2668.0,5.32946244]
[1727527030858,4.48842213,2668.1,2668.0,5.32946244]
[1727527032558,4.48842213,2668.1,2668.0,3.74812]
[1727527032863,4.87995332,2668.1,2668.0,3.74812]
[1727527033289,2.92436928,2668.1,2668.0,3.74812]
[1727527033894,2.92436928,2668.1,2667.8,3.74839]
[1727527034049,1.95481766,2668.0,2667.8,3.74839]
[1727527034247,1.7012805,2667.9,2667.8,3.74839]
[1727527035247,2.0,2667.7,2667.6,5.32993244]
[1727527035689,3.31034374,2667.7,2667.6,5.32993244]
[1727527035895,3.31034374,2667.7,2667.6,3.74859]
[1727527036048,4.11860905,2667.7,2667.6,5.32993244]
[1727527039375,2.94628656,2667.7,2667.6,5.32993244]
[1727527040255,3.72725309,2667.7,2667.6,5.32993244]
[1727527041177,3.72725237,2667.7,2667.6,5.32993244]
[1727527042080,4.11860905,2667.7,2667.5,3.74881]
[1727527042284,4.11860905,2667.7,2667.5,7.49756]
[1727527042285,1.17232249,2667.6,2667.5,7.49756]
[1727527042516,1.30954812,2667.6,2667.5,3.74875]
[1727527045281,0.13722563,2667.6,2667.5,3.74875]
[1727527045725,1.30954812,2667.6,2667.5,3.74875]
[1727527045890,0.13722563,2667.6,2667.5,3.74875]
[1727527046092,0.91745657,2667.6,2667.5,3.74875]
[1727527046626,0.13722563,2667.6,2667.5,3.74875]
[1727527046843,0.91745657,2667.6,2667.5,5.33009244]
[1727527047031,0.13722563,2667.6,2667.5,5.33009244]
[1727527047214,0.91745657,2667.6,2667.5,5.33009244]
[1727527047422,0.13722563,2667.6,2667.5,5.33009244]
[1727527047932,0.91745657,2667.6,2667.5,5.33009244]
[1727527048615,0.13722563,2667.6,2667.5,6.14999244]
[1727527050605,0.13722563,2667.6,2667.5,5.33009244]
[1727527055969,0.91745657,2667.6,2667.5,3.74882]
[1727527056266,0.13722563,2667.6,2667.3,5.33033244]
[1727527056564,1.57395324,2667.5,2667.4,3.74892]
[1727527056913,1.71113679,2667.5,2667.4,3.74892]
[1727527058436,2.0,2667.3,2666.6,0.8047]
[1727527058669,2.77975324,2667.3,2667.1,3.74931]
[1727527058834,0.13676274,2667.2,2667.1,3.7493]
[1727527059039,0.7942,2667.2,2667.1,3.7493]
[1727527059226,0.93094871,2667.2,2667.1,3.7493]
[1727527060943,0.93094871,2667.2,2667.1,3.74939]
[1727527063048,0.93094871,2667.2,2667.0,3.74948]
[1727527063982,0.93094871,2667.2,2667.1,3.74939]
[1727527064685,0.93094871,2667.2,2667.1,5.33073244]
[1727527065545,0.93094871,2667.2,2667.0,7.49906]
[1727527065879,1.71070195,2667.2,2667.0,3.74945]
[1727527066922,1.71070195,2667.2,2667.0,5.33078244]
[1727527067060,1.71070195,2667.2,2667.0,9.08023244]
[1727527067474,0.93094871,2667.2,2667.0,9.08022244]
[1727527067882,0.93094871,2667.2,2667.0,5.33078244]
[1727527069550,0.93094871,2667.2,2667.0,9.08023244]
[1727527069750,0.93094871,2667.2,2667.1,3.74939]
[1727527070489,1.71070195,2667.2,2667.1,3.74939]
[1727527078740,1.71036428,2667.2,2667.1,3.74939]
[1727527079233,0.93094871,2667.2,2667.1,3.74939]
[1727527079526,2.1032712,2667.2,2667.1,3.74939]
[1727527081542,2.0,2667.0,2666.8,5.33105244]
[1727527081698,0.13646807,2666.9,2666.8,5.33105244]
[1727527082127,0.13646807,2666.9,2666.8,6.15125244]
[1727527083038,0.13646807,2666.9,2666.8,7.51637768]
[1727527083243,0.13646807,2666.9,2666.8,7.59136671]
[1727527083740,0.77949786,2667.2,2667.1,3.74939]
[1727527083913,0.77949786,2667.2,2667.1,5.33073244]
[1727527084254,0.77949786,2667.2,2667.1,6.15093244]
[1727527085047,0.77949786,2667.2,2667.1,7.02798602]
[1727527085202,2.0,2667.3,2667.2,3.74925]
[1727527085726,2.13631377,2667.3,2667.2,3.74925]
[1727527087303,2.13631377,2667.3,2667.2,5.2019246]
[1727527089206,2.13631377,2667.3,2667.2,3.74925]
[1727527092122,2.89111377,2667.3,2667.2,3.74925]
[1727527092320,3.67061163,2667.3,2667.2,3.74925]
[1727527092532,2.89111377,2667.3,2667.0,3.74946]
[1727527092742,2.0,2667.0,2666.7,3.74985]
[1727527092907,2.77993814,2667.0,2666.8,3.74968]
[1727527093330,0.1364681,2666.9,2666.8,3.74968]
[1727527097346,0.1364681,2666.9,2666.8,4.73978724]
[1727527097677,0.1364681,2666.9,2666.8,5.56708724]
[1727527098178,0.77993814,2667.2,2666.8,5.64206989]
[1727527098324,0.77993814,2667.2,2667.1,3.74939]
[1727527098973,0.77993814,2667.2,2667.1,4.57669]
[1727527099278,2.77993814,2667.3,2667.2,3.74925]
[1727527099477,2.77993814,2667.3,2667.2,5.33059244]
[1727527100125,2.78027014,2667.3,2667.2,5.33059244]
[1727527100325,2.0,2667.3,2667.2,5.33059244]
[1727527100555,2.78029448,2667.3,2667.2,5.33059244]
[1727527100758,2.91633742,2667.3,2667.2,5.33059244]
[1727527101428,2.13604294,2667.3,2667.2,5.33059244]
[1727527101843,2.91621626,2667.3,2667.2,5.33059244]
[1727527102842,2.13604294,2667.3,2667.2,5.33059244]
[1727527104433,2.91621626,2667.3,2667.2,5.33059244]
[1727527104668,2.13604294,2667.3,2667.2,5.33059244]
[1727527110582,0.13604294,2667.3,2667.2,6.3962994]
[1727527110874,1.17256152,2667.5,2667.4,3.74896]
[1727527111070,1.17256152,2667.5,2667.4,5.33030244]
[1727527111312,0.78017332,2667.5,2667.4,5.33030244]
[1727527112307,2.78017332,2667.6,2667.5,3.74882]
[1727527115636,2.90769897,2667.6,2667.5,3.74882]
[1727527122351,2.12752565,2667.6,2667.5,3.74882]
[1727527123529,2.90769897,2667.6,2667.5,3.74882]
[1727527128226,2.94722565,2667.6,2667.5,3.74882]
[1727527128624,4.11717104,2667.6,2667.5,3.74882]
[1727527129050,2.94722565,2667.6,2667.5,3.74882]
[1727527129359,4.11717104,2667.6,2667.5,3.74882]
[1727527137945,3.29747104,2667.6,2667.5,3.74882]
[1727527141340,2.12752565,2667.6,2667.5,3.74882]
[1727527141664,3.29800631,2667.6,2667.5,3.74882]
[1727527141868,2.12752565,2667.6,2667.5,3.74882]
[1727527142267,3.69101959,2667.6,2667.5,3.74882]
[1727527143276,2.0,2667.3,2667.1,3.74937]
[1727527143587,3.56138923,2667.3,2667.2,3.74924]
[1727527143877,2.0,2667.3,2667.2,3.74924]
[1727527144282,3.56138923,2667.3,2667.2,3.74925]
[1727527145184,2.0,2667.3,2667.2,3.74925]
[1727527145793,3.68385133,2667.3,2667.2,3.74925]
[1727527146026,4.51585133,2667.3,2667.1,5.33071244]
[1727527146171,1.56138923,2667.2,2667.1,7.49868]
[1727527146501,1.68371103,2667.2,2667.1,3.74931]
[1727527146709,1.68346005,2667.2,2667.1,3.74931]
[1727527146907,0.1223218,2667.2,2667.1,3.74931]
[1727527147393,1.56079498,2667.2,2666.9,5.33092244]
[1727527147566,1.56079498,2667.2,2666.9,3.74953]
[1727527147567,1.17061528,2667.1,2666.9,3.74953]
[1727527147768,1.17061528,2667.0,2666.9,3.74953]
[1727527147971,1.29293708,2667.0,2666.8,3.74973]
[1727527148219,0.832,2666.9,2666.8,3.74973]
[1727527148374,2.0021186,2666.9,2666.8,3.74973]
[1727527148704,2.1244404,2666.9,2666.8,3.74973]
[1727527149265,2.1244404,2666.9,2666.8,5.33107244]
[1727527149608,0.90216949,2666.9,2666.8,5.33107244]
[1727527149819,0.1223218,2666.9,2666.8,5.33107244]
[1727527150021,0.90218748,2666.9,2666.8,5.33107244]
[1727527151215,0.1223218,2666.9,2666.8,5.33107244]
[1727527151723,0.1223218,2666.9,2666.8,6.31809368]
[1727527152608,0.1223218,2666.9,2666.8,7.10739368]
[1727527153908,0.1223218,2666.9,2666.8,7.18237519]
[1727527154113,2.77986568,2667.3,2667.2,4.56425]
[1727527154310,2.77986568,2667.3,2667.2,6.97695444]
[1727527154626,2.77986568,2667.3,2667.2,6.14559244]
[1727527155945,0.77986568,2667.3,2667.2,6.14559244]
[1727527156999,0.77986568,2667.3,2667.2,5.33059244]
[1727527160670,0.9020051,2667.3,2667.2,5.33059244]
[1727527163939,0.9020051,2667.3,2667.2,3.74925]
[1727527164262,0.12213942,2667.3,2667.2,3.74925]
[1727527167153,1.6829344,2667.3,2667.1,3.74937]
[1727527167387,1.92195175,2667.2,2667.1,3.74937]
[1727527167756,0.87453942,2667.2,2667.1,3.74937]
[1727527168259,2.04406047,2667.2,2667.1,3.74937]
[1727527168453,0.87453942,2667.2,2667.1,3.74937]
[1727527169206,2.04404276,2667.2,2667.1,3.74937]
[1727527169371,2.04404525,2667.2,2667.1,3.74937]
[1727527172413,1.29164525,2667.2,2667.1,3.74937]
[1727527172619,0.12213942,2667.2,2667.1,3.74937]
[1727527172778,1.16950583,2667.2,2667.1,3.74937]
[1727527172978,1.29154702,2667.2,2667.1,3.74937]
[1727527173982,2.0,2667.1,2667.0,5.33086244]
[1727527174607,2.12197805,2667.1,2667.0,5.33086244]
[1727527175195,3.29148388,2667.1,2667.0,5.33086244]
[1727527175395,2.12197805,2667.1,2667.0,5.33086244]
[1727527175706,3.16950583,2667.1,2667.0,5.33086244]
[1727527175903,2.121957,2667.1,2667.0,5.33086244]
[1727527176130,2.90165535,2667.1,2667.0,5.33086244]
[1727527176616,2.121957,2667.1,2667.0,5.33086244]
[1727527176824,2.90166777,2667.1,2667.0,5.33086244]
[1727527177022,2.121957,2667.1,2667.0,5.33086244]
[1727527181449,3.29146283,2667.1,2667.0,5.33086244]
[1727527191694,2.121957,2667.1,2667.0,5.33086244]
[1727527191891,3.29256403,2667.1,2667.0,5.33086244]
[1727527197404,3.29256403,2667.1,2667.0,3.74952]
[1727527197701,2.121957,2667.1,2667.0,3.74952]
[1727527197903,3.29283315,2667.1,2667.0,3.74952]
[1727527198452,4.50565198,2667.1,2667.0,3.74952]
[1727527201731,2.944857,2667.1,2667.0,3.74952]
[1727527202118,4.89582436,2667.1,2667.0,3.74952]
[1727527202318,2.944857,2667.1,2667.0,3.74952]
[1727527202592,0.944857,2667.1,2667.0,3.74952]
[1727527202798,2.50604609,2667.1,2667.0,3.74952]
[1727527203300,0.121957,2667.1,2667.0,5.33086244]
[1727527203500,0.121957,2667.1,2667.0,7.05501368]
[1727527203501,2.90264082,2667.1,2667.0,7.05501368]
[1727527203798,2.121957,2667.1,2667.0,7.05501368]
[1727527204166,2.90264082,2667.1,2667.0,5.47367124]
[1727527204382,3.68316833,2667.1,2667.0,3.74952]
[1727527205600,3.68304314,2667.1,2667.0,3.74952]
[1727527205953,2.121957,2667.1,2667.0,3.74952]
[1727527206152,3.68304892,2667.1,2667.0,3.74952]
[1727527206400,4.50594892,2667.1,2667.0,3.74952]
[1727527206549,2.944857,2667.1,2667.0,3.74952]
[1727527206753,4.50602215,2667.1,2667.0,3.74952]
[1727527207155,4.50609976,2667.1,2667.0,3.74952]
[1727527207356,2.944857,2667.1,2667.0,3.74952]
[1727527207957,4.50608471,2667.1,2667.0,3.74952]
[1727527208157,4.89633704,2667.1,2667.0,3.74952]
[1727527208373,2.944857,2667.1,2667.0,3.74952]
[1727527209313,2.944857,2667.1,2667.0,5.33086244]
[1727527209314,2.121957,2667.1,2667.0,5.33086244]
[1727527209471,3.68351711,2667.1,2667.0,5.33086244]
[1727527213608,4.07419759,2667.1,2667.0,3.74952]
[1727527213763,4.07423865,2667.1,2667.0,3.74952]
[1727527215868,4.07417213,2667.1,2667.0,3.74952]
[1727527218177,4.07407345,2667.1,2667.0,3.74952]
[1727527222950,4.07343002,2667.1,2667.0,3.74952]
[1727527224056,2.121957,2667.1,2667.0,3.74952]
[1727527224260,4.07343002,2667.1,2667.0,3.74952]
[1727527225784,4.07343002,2667.1,2667.0,5.33086244]
[1727527226293,2.121957,2667.1,2667.0,5.33086244]
[1727527226493,3.68316576,2667.1,2667.0,5.33086244]
[1727527226654,3.6831725,2667.1,2667.0,5.33086244]
[1727527227065,3.68317905,2667.1,2667.0,5.33086244]
[1727527227614,2.121957,2667.1,2667.0,5.33086244]
[1727527227758,3.68312396,2667.1,2667.0,5.33086244]
[1727527231770,2.17894476,2667.1,2667.0,5.33086244]
[1727527232184,3.73999006,2667.1,2667.0,5.33086244]
[1727527232567,2.17894476,2667.1,2667.0,5.33086244]
[1727527233220,3.74005083,2667.1,2667.0,5.33086244]
[1727527233413,2.17894476,2667.1,2667.0,5.33086244]
[1727527234910,3.74002866,2667.1,2667.0,5.33086244]
[1727527235118,2.17894476,2667.1,2667.0,5.33086244]
[1727527235588,3.74001571,2667.1,2667.0,5.33086244]
[1727527236112,2.17894476,2667.1,2667.0,5.33086244]
[1727527236837,0.7628,2666.7,2666.6,3.75009]
[1727527237021,2.71348919,2666.7,2666.6,3.75009]
[1727527237222,2.89238791,2666.7,2666.6,3.75009]
[1727527237425,3.28483187,2666.7,2666.6,3.75009]
[1727527237648,2.0,2666.2,2666.1,3.75068]
[1727527237798,3.55977568,2666.2,2666.1,3.75068]
[1727527237997,3.73838922,2666.2,2666.1,3.75068]
[1727527238332,3.34750955,2666.2,2666.1,3.75068]
[1727527239092,2.17861354,2666.2,2666.1,3.75068]
[1727527239335,2.95789054,2666.2,2666.1,6.24031668]
[1727527239499,0.17861354,2666.2,2666.1,7.05511668]
[1727527239700,2.0,2665.8,2665.7,0.8148]
[1727527239901,2.17195077,2665.8,2665.7,4.56613]
[1727527240206,2.17195077,2665.8,2665.7,5.397892]
[1727527240623,0.17195077,2665.8,2665.7,6.97923444]
[1727527240957,2.0,2666.1,2665.7,6.97923444]
[1727527240958,2.0,2666.1,2666.0,3.75093]
[1727527241103,2.0,2666.1,2666.0,4.50113]
[1727527241307,2.0,2666.1,2666.0,6.08247244]
[1727527241805,2.0,2666.1,2666.0,6.89727244]
[1727527244133,2.0,2666.1,2666.0,3.75093]
[1727527244330,2.7628,2666.1,2665.9,3.75107]
[1727527244543,0.779277,2666.0,2665.9,3.75107]
[1727527246471,3.542077,2666.1,2665.9,3.75107]
[1727527249360,2.7628,2666.1,2665.9,3.75107]
[1727527250764,0.17185884,2666.0,2665.9,3.75107]
[1727527252767,0.56440192,2666.0,2665.9,3.75107]
[1727527255333,0.56440192,2666.0,2665.9,5.33241244]
[1727527255531,0.56440192,2666.0,2665.9,7.06287468]
[1727527258883,0.17185884,2666.0,2665.9,7.06287468]
[1727527264500,0.17185884,2666.0,2665.9,4.57317]
[1727527272923,0.17185884,2666.0,2665.9,4.64818011]
[1727527273228,2.39251834,2666.4,2666.3,4.57261]
[1727527273381,2.39251834,2666.4,2666.3,6.15395244]
[1727527273579,2.55187863,2666.4,2666.3,6.15395244]
[1727527274313,2.55187863,2666.4,2666.3,7.14441168]
[1727527274830,2.15936029,2666.4,2666.3,7.14441168]
[1727527277394,0.15936029,2666.4,2666.3,7.14441168]
[1727527277775,2.0,2666.7,2666.6,3.75009]
[1727527277901,2.0,2666.7,2666.6,6.08146244]
[1727527278296,2.0,2666.7,2666.6,6.91206244]
[1727527279617,2.39244093,2667.0,2666.6,6.91206244]
[1727527279926,2.39244093,2667.0,2666.9,6.16161244]
[1727527280126,2.39244093,2667.0,2666.9,7.15275268]
[1727527280728,2.15376916,2667.0,2666.9,7.15275268]
[1727527282536,0.15376916,2667.0,2666.9,7.15275268]
[1727527282748,2.0,2667.3,2667.2,3.74925]
[1727527283049,2.14882386,2667.3,2667.2,6.08045444]
[1727527288547,2.0,2667.3,2667.2,6.08045444]
[1727527288745,2.14903769,2667.3,2667.2,6.08045444]
[1727527288912,2.0,2667.3,2667.2,6.08045444]
[1727527292947,2.0,2667.3,2667.2,6.91105444]
[1727527294148,0.3924075,2667.5,2667.4,3.74896]
[1727527294350,0.54148792,2667.5,2667.4,5.33030244]
[1727527296180,0.54148792,2667.5,2667.4,6.11260244]
[1727527297576,2.0,2667.9,2667.8,3.7484]
[1727527297788,2.0,2667.9,2667.8,5.32974244]
[1727527297981,2.14926572,2667.9,2667.8,5.32974244]
[1727527298146,2.14926572,2667.9,2667.8,6.31579968]
[1727527298489,2.0,2667.9,2667.8,6.31579968]
[1727527305776,4.98875692,2667.9,2666.3,0.78655971]
[1727527305999,2.0,2666.6,2666.5,3.75022]
[1727527306163,2.0,2666.6,2666.2,1.58134244]
[1727527306364,0.14502743,2666.5,2666.3,3.75049]
[1727527306713,0.14502743,2666.5,2666.0,3.75092]
[1727527306868,2.0,2666.0,2665.7,3.75123]
[1727527307207,3.0,2666.7,2665.5,3.75164]
[1727527307208,2.0,2665.7,2665.5,3.75164]
[1727527307515,2.0,2665.7,2665.5,3.75163]
[1727527308065,2.0,2665.7,2665.5,1.58134244]
[1727527308268,2.0,2665.7,2665.3,7.31462737]
[1727527308513,2.0,2665.7,2665.3,8.15625932]
[1727527309425,2.0,2665.7,2665.3,8.15624932]
[1727527310501,0.14400128,2665.6,2665.3,8.15624932]
[1727527310920,2.0,2665.7,2665.3,8.15624932]
[1727527311107,2.0,2665.7,2665.4,0.89385493]
[1727527311414,2.0,2665.7,2665.4,4.64563493]
[1727527312181,0.14400128,2665.6,2665.4,4.64563493]
[1727527312381,2.0,2665.7,2665.4,4.64563493]
[1727527312623,0.14400128,2665.6,2665.4,4.64563493]
[1727527313035,2.0,2665.7,2665.4,4.64563493]
[1727527313386,0.14400128,2665.6,2665.4,4.64563493]
[1727527314021,2.0,2665.7,2665.4,4.64563493]
[1727527314524,0.14400128,2665.6,2665.4,4.64563493]
[1727527314936,2.0,2665.7,2665.4,4.64563493]
[1727527315437,0.14400128,2665.6,2665.4,4.64563493]
[1727527315609,0.14400128,2665.6,2665.4,3.75178]
[1727527315808,2.0,2665.7,2665.4,3.75178]
[1727527316014,2.0,2665.7,2665.4,3.75164]
[1727527316216,0.14400128,2665.6,2665.5,3.7516]
[1727527316599,2.0,2665.7,2665.4,3.75164]
[1727527316837,2.0,2665.7,2665.5,3.75164]
[1727527316996,0.14400128,2665.6,2665.5,3.75164]
[1727527317532,2.0,2665.7,2665.5,3.75164]
[1727527317830,0.14400128,2665.6,2665.5,3.75164]
[1727527318189,2.0,2665.7,2665.5,3.75164]
[1727527318511,0.14400128,2665.6,2665.5,3.75164]
[1727527318886,2.0,2665.7,2665.5,3.75164]
[1727527319313,0.14400128,2665.6,2665.5,3.75164]
[1727527324836,0.97440128,2665.6,2665.5,3.75164]
[1727527327174,0.97440128,2665.6,2665.3,3.8819595]
[1727527327336,0.97440128,2665.6,2665.3,3.8818795]
[1727527327527,2.0,2665.4,2665.3,3.8818795]
[1727527327885,2.14219007,2665.4,2665.3,3.8818795]
[1727527328571,2.14219007,2665.4,2665.3,0.1300495]
[1727527328572,2.97259007,2665.4,2665.3,0.1300495]
[1727527328753,13.54984481,2665.4,2665.3,0.1300495]
[1727527329426,57.48580894,2665.4,2665.3,0.1300495]
[1727527329663,60.91847681,2665.4,2665.3,0.1300495]
[1727527330329,59.0719552,2665.4,2665.3,0.1300495]
[1727527330545,11.7033232,2665.4,2665.3,0.1300495]
[1727527331424,12.27248777,2665.4,2665.3,0.1300495]
[1727527332075,11.7033232,2665.4,2665.3,0.1300495]
[1727527332365,13.55438077,2665.4,2665.3,0.1300495]
[1727527332967,64.05438077,2665.4,2665.3,0.1300495]
[1727527333786,64.05438077,2665.4,2663.2,6.75477]
[1727527333787,2.1453,2663.4,2662.5,0.7815]
[1727527334072,2.0,2663.1,2662.8,3.75538]
[1727527334461,2.0,2662.7,2662.6,0.1300495]
[1727527335162,2.7507,2662.7,2662.6,0.1300495]
[1727527335391,9.6407029,2662.7,2662.6,0.1300495]
[1727527335658,2.8851229,2662.7,2662.6,0.1300495]
[1727527336205,2.1344229,2662.7,2662.6,0.1300495]
[1727527337096,2.1344229,2662.7,2662.6,3.8857695]
[1727527337294,2.1344229,2662.7,2662.6,4.64994245]
[1727527338101,2.0,2662.7,2662.6,4.64994245]
[1727527338859,2.0,2663.0,2662.9,3.7553]
[1727527339084,2.0,2663.0,2662.9,7.19250383]
[1727527339316,2.0,2663.3,2663.2,4.53258]
[1727527339492,2.0,2663.6,2663.5,3.75445]
[1727527340004,2.0,2663.9,2663.8,3.75403]
[1727527340998,2.0,2663.9,2663.6,10.94558383]
[1727527340999,2.0,2663.5,2663.4,3.75458]
[1727527342809,2.0,2663.5,2663.4,7.19178383]
[1727527343267,2.0,2663.8,2663.7,3.75417]
[1727527343697,2.0,2663.8,2663.7,7.19137383]
[1727527343901,2.0,2664.1,2664.0,3.75375]
[1727527344072,2.0,2664.1,2664.0,7.19095383]
[1727527344569,2.0,2664.1,2664.0,3.75375]
[1727527347000,2.0,2664.4,2664.3,3.75333]
[1727527347526,2.13488737,2664.4,2664.3,3.75333]
[1727527347831,2.13488737,2664.4,2664.3,7.19053383]
[1727527348130,2.13488737,2664.4,2664.3,3.75333]
[1727527352234,2.13488737,2664.4,2664.2,3.75347]
[1727527352988,2.0,2664.1,2664.0,3.75369]
[1727527353293,2.13544454,2664.1,2664.0,3.75375]
[1727527353498,2.13544454,2664.1,2663.9,3.75378]
[1727527353798,2.13544454,2664.1,2664.0,3.75375]
[1727527354245,2.0,2664.1,2664.0,3.75375]
[1727527354601,2.13527311,2664.1,2663.9,3.75378]
[1727527354936,2.13527311,2664.1,2664.0,3.75375]
[1727527355141,2.13527311,2664.1,2663.9,3.75378]
[1727527355510,2.13527311,2664.1,2664.0,3.75375]
[1727527355843,2.0,2663.5,2663.3,3.75474]
[1727527356045,2.0,2663.5,2663.4,3.75459]
[1727527356920,2.13473732,2663.5,2663.4,3.75459]
[1727527357451,2.13473732,2663.5,2663.4,4.585263]
[1727527357659,0.13473732,2663.5,2663.4,4.585263]
[1727527357866,2.13473732,2663.5,2663.4,4.585263]
[1727527358016,2.0,2663.5,2663.4,3.75459]
[1727527358217,2.13478019,2663.5,2663.4,3.75459]
[1727527358417,2.13478019,2663.5,2663.3,3.75474]
[1727527358617,2.13478019,2663.5,2663.3,3.75464]
[1727527358922,2.13478019,2663.5,2663.4,3.75459]
[1727527361466,2.13478019,2663.5,2663.3,3.75464]
[1727527361819,2.0,2663.2,2663.1,3.75495]
[1727527362244,2.13443011,2663.2,2663.1,3.75495]
[1727527362641,2.0,2663.2,2663.1,3.75495]
[1727527364533,2.0,2663.2,2663.1,5.039651]
[1727527367658,2.0,2663.5,2663.4,4.55199]
[1727527368573,2.0,2663.5,2663.4,7.98919383]
[1727527369947,2.0,2663.8,2663.7,3.75417]
[1727527370273,2.13436578,2663.8,2663.7,3.75417]
[1727527373879,2.13436578,2663.8,2663.4,4.55193]
[1727527374056,2.13436578,2663.8,2663.5,3.75444]
[1727527374470,2.13436578,2663.8,2663.4,3.75447]
[1727527374640,2.0,2663.5,2663.4,3.75447]
[1727527374842,2.13432291,2663.5,2663.2,3.75479]
[1727527375040,2.13432291,2663.5,2663.3,3.75464]
[1727527375263,2.13432291,2663.5,2663.2,3.75479]
[1727527375467,2.13432291,2663.5,2663.2,7.50957]
[1727527375689,2.13432291,2663.5,2663.2,3.75478]
[1727527376092,2.13432291,2663.5,2663.2,7.50957]
[1727527376574,2.13432291,2663.5,2663.2,3.75478]
[1727527377375,2.0,2663.2,2663.1,3.75502]
[1727527377563,2.0,2662.8,2662.7,3.75558]
[1727527377764,2.13413708,2662.8,2662.7,4.06858495]
[1727527378209,2.0,2662.8,2662.7,4.06858495]
[1727527378415,2.0,2662.8,2662.6,7.32290333]
[1727527378630,2.13413708,2662.8,2662.6,7.6413295]
[1727527378906,2.13413708,2662.8,2662.6,3.8856795]
[1727527379467,2.13413708,2662.8,2662.6,0.1300495]
[1727527380517,3.75558,2662.7,2662.6,0.1300495]
[1727527380687,4.55998,2662.7,2662.6,0.1300495]
[1727527381007,0.93828691,2662.7,2662.6,0.1300495]
[1727527383120,0.13388691,2662.7,2662.6,3.8857695]
[1727527383512,2.0,2662.8,2662.6,0.1300495]
[1727527383818,2.0,2662.8,2662.7,3.75558]
[1727527384724,2.0,2662.8,2662.7,7.19278383]
[1727527385719,2.13368671,2662.8,2662.7,8.30063816]
[1727527386079,2.0,2662.8,2662.7,8.30063816]
[1727527386717,2.0,2662.8,2662.7,9.08513816]
[1727527389320,2.0,2663.1,2662.7,9.08513816]
[1727527389523,2.0,2663.4,2663.0,7.19236383]
[1727527389829,2.0,2663.4,2663.3,3.75474]
[1727527392669,2.0,2663.7,2663.6,3.75431]
[1727527392829,2.0,2663.7,2663.6,7.19151383]
[1727527393469,2.0,2664.0,2663.9,3.75389]
[1727527393639,2.0,2664.0,2663.9,7.19109383]
[1727527393841,2.0,2664.3,2664.2,3.75347]
[1727527394073,2.0,2664.3,2664.2,7.19067383]
[1727527394226,2.0,2664.3,2664.2,7.97517383]